[Event "34th MPL National U14-ch 2022"]
[Site "Ahmedabad"]
[Date "2022.05.13"]
[Round "9.5"]
[White "Bagwe Gaurang"]
[Black "Shaik Sumer Arsh"]
[Result "1-0"]
[ECO "C77"]
[WhiteElo "1789"]
[BlackElo "1999"]
[Annotator "TA"]
[PlyCount "99"]
[EventDate "2022.05.09"]
[EventType "swiss"]
[EventCountry "IND"]
[SourceTitle "playchess.com"]
[Source "ChessBase"]
[SourceQuality "1"]
[TimeControl "5400+30"]

{[%evp 13,99,0,0,0,7,0,12,0,1,0,6,6,3,2,7,-3,23,-29,-16,-20,0,0,15,13,11,-20,-10,-22,11,11,22,16,25,31,42,27,31,14,30,13,25,0,0,0,0,-7,0,-36,0,0,0,0,0,0,5,9,58,53,88,87,100,90,103,60,105,38,44,24,33,26,38,41,107,102,314,320,554,549,508,160,535,416,709,697,1098,1061,763,746]} 1. e4 {[%emt 0:00:07]} e5 {[%emt 0:00:09]} 2. Nf3 {[%emt 0:00:15]} Nc6 {[%emt 0:00:07]} 3. Bb5 {[%emt 0:00:04][%cal Bf1b5,Bb5a4,Ba4b3][%mdl 32]} a6 {[%emt 0:00:13]} 4. Ba4 {[%emt 0:00:01]} Nf6 {[%emt 0:00:12]} 5. d3 {[%emt 0:00:12]} b5 {[%emt 0:00:09]} 6. Bb3 {[%emt 0:00:04]} Bc5 {[%emt 0:00:09]} 7. c3 $1 {[%emt 0:00:10][%mdl 4] is now more promising than 7.0-0.} d6 {[%emt 0:00:31]} 8. Nbd2 {[%emt 0:00:06] C77: Ruy Lopez: 3...a6 4 Ba4 Nf6, unusual lines.} O-O {[%emt 0:01:54]} 9. h3 {[%emt 0:00:28]} h6 {[%emt 0:00:57]} 10. Nf1 {[%emt 0:00:11] The position is equal.} Bb6 {[%emt 0:01:58]} 11. Ng3 {[%emt 0:01:07]} Re8 {[%emt 0:03:11]} 12. O-O {[%emt 0:02:42]} Be6 {[%emt 0:03:36]} 13. Qe2 {[%emt 0:02:26]} d5 {[%emt 0:13:52]} 14. Rd1 {[%emt 0:02:05] [#]} Qd7 $146 {[%emt 0:13:16]} ({Predecessor:} 14... a5 15. Be3 a4 16. Bc2 d4 17. Bc1 a3 18. Bb3 Nd7 19. Bxe6 fxe6 20. Qc2 Qe7 21. cxd4 Nxd4 22. Nxd4 Bxd4 {½-½ (41) Smikovski,I (2558)-Amonatov,F (2634) Serpukhov 2008}) 15. Kh2 {[%emt 0:07:53]} ({White should play} 15. Be3) 15... Rad8 {[%emt 0:04:55]} 16. Nh4 {[%emt 0:02:45]} Na5 {[%emt 0:02:15]} 17. Bc2 {[%emt 0:00:41]} dxe4 {[%emt 0:01:02]} 18. dxe4 {[%emt 1:18:13]} Qc6 {[%emt 0:04:15]} 19. Re1 {[%emt 0:00:00]} Nc4 {[%emt 0:03:35]} 20. Nhf5 {[%emt 0:00:00]} Bxf5 {[%emt 0:11:05]} 21. Nxf5 {[%emt 0:00:00]} Nd6 {[%emt 0:00:35]} 22. Ng3 {[%emt 0:00:00]} Nc8 {[%emt 0:03:18]} 23. a4 {[%emt 0:00:00]} Qd7 {[%emt 0:05:53]} 24. Qf3 {[%emt 0:00:00][%cal Oc1h6] Threatens to win with Bxh6!} Qe6 {[%emt 0:04:20]} 25. Nf5 {[%emt 0:00:00][%cal Oc1h6] [#] Bxh6! is the strong threat.} Ne7 {[%emt 0:01:10]} 26. axb5 {[%emt 0:00:00]} axb5 {[%emt 0:01:55]} 27. Qg3 {[%emt 0:00:00][%csl Gf5][%cal Rg3g7]} Nxf5 {[%emt 0:00:48]} 28. exf5 $40 {[%emt 0:00:00][%mdl 128] Black needs to defend precisely.} Qc6 {[%emt 0:02:58]} 29. Bb3 {[%emt 0:00:00]} ({Wrong is} 29. Bxh6 $2 Nh5 30. Qh4 Qxh6 $19) 29... Kf8 {[%emt 0:01:44]} 30. Ra6 {[%emt 0:00:00]} ({But not} 30. Rxe5 Rxe5 31. Qxe5 Bxf2 $15) 30... Qd7 {[%emt 0:01:49]} (30... Qb7 $5 {[%cal Rb7a6]} 31. Ra1 c5 $11) 31. Rxe5 {[%emt 0:00:00]} Rxe5 {[%emt 0:00:14]} 32. Qxe5 {[%emt 0:00:00][%cal Oc1h6]} Re8 {[%emt 0:00:11]} 33. Qf4 {[%emt 0:00:00]} Kg8 {[%emt 0:01:45]} 34. Qf3 {[%emt 0:00:00] Against Re2} Ne4 {[%emt 0:03:36]} (34... Re1 $11 {was preferrable.} 35. Be3 Bxe3 36. fxe3 Kh7) 35. Bc2 $1 $14 {[%emt 0:00:00]} Qd6+ {[%emt 0:04:44]} 36. Bf4 {[%emt 0:00:00]} Qd5 {[%emt 0:00:10]} 37. Bg3 {[%emt 0:00:00]} Nf6 {[%emt 0:02:40]} 38. Qd3 {[%emt 0:00:00]} Kh7 {[%emt 0:02:24]} 39. Qf1 {[%emt 0:00:00]} ({Better is} 39. Qxd5 $16 Nxd5 40. Bb3) 39... Qd2 {[%emt 0:00:33]} 40. Qd1 {[%emt 0:00:00]} Re2 {[%emt 0:01:30]} 41. Qxd2 {[%emt 0:00:00]} Rxd2 {[%emt 0:00:01]} 42. Bb3 {[%emt 0:00:00]} Nd5 {[%emt 0:01:02]} (42... g6 $14) 43. h4 $16 {[%emt 0:00:00][%cal Bh3h4,Bh4h5][%mdl 32]} Ne7 $2 {[%emt 0:00:29] This move loses the game for Black.} (43... h5 $16) 44. Bxf7 $18 {[%emt 0:00:00][%cal Of7g6] [#] And now Bg6+! would win.} Nxf5 $2 {[%emt 0:00:01]} (44... Rd8 {was called for.} 45. Bg6+ Kh8) 45. h5 {[%emt 0:00:00] Intending Bg6+ and mate.} Ne7 {[%emt 0:01:08] Prevents Bg6+.} 46. Bh4 $2 {[%emt 0:00:00]} (46. Bg6+ $18 {and White stays clearly on top.} Nxg6 47. hxg6+ Kxg6 48. Bxc7) 46... Bc5 $2 {[%emt 0:00:32]} (46... g5 $16 {is tougher.} 47. hxg6+ Nxg6) 47. Re6 {[%emt 0:00:00]} Rd7 {[%emt 0:00:32]} (47... Nd5 $142 48. Bg6+ Kg8 49. Re8+ Bf8) 48. Be8 {[%emt 0:00:06] White is clearly winning.} Rd8 {[%emt 0:00:28]} 49. Bg6+ {[%emt 0:00:06]} Kg8 {[%emt 0:00:33]} 50. Bxe7 {[%emt 0:00:06] Weighted Error Value: White=0.22 (precise) /Black=0.39} 1-0

[Event "34th MPL National U14-ch 2022"]
[Site "Ahmedabad"]
[Date "2022.05.13"]
[Round "9.6"]
[White "Bharadia Yash"]
[Black "Daaevik Wadhawan"]
[Result "1-0"]
[ECO "B90"]
[WhiteElo "1924"]
[BlackElo "1603"]
[Annotator "TA"]
[PlyCount "107"]
[EventDate "2022.05.09"]
[EventType "swiss"]
[EventCountry "IND"]
[SourceTitle "playchess.com"]
[Source "ChessBase"]
[SourceQuality "1"]
[TimeControl "5400+30"]

{[%evp 19,106,17,14,-16,26,8,28,8,7,30,16,6,64,79,63,68,72,60,95,43,56,52,52,52,66,-27,36,0,0,0,33,38,54,27,18,31,45,0,0,-14,24,0,25,-39,0,0,0,0,0,0,0,0,11,0,0,0,2,16,135,123,125,64,63,79,191,183,728,720,706,691,1122,1027,1823,1823,12839,12837,29983,29984,29988,29983,29983,29984,29984,29985,29996,29997,29997,29998,29999]} 1. e4 {[%emt 0:07:30]} c5 2. Nf3 {[%emt 0:00:40]} d6 {[%emt 0:00:03]} 3. d4 {[%emt 0:00:08]} cxd4 {[%emt 0:00:32]} 4. Nxd4 {[%emt 0:00:02]} Nf6 {[%emt 0:00:00]} 5. Nc3 {[%emt 0:00:10]} a6 {[%emt 0:00:00]} 6. Be3 {[%emt 0:00:01]} e5 {[%emt 0:00:00]} 7. Nb3 {[%emt 0:00:10]} Be7 {[%emt 0:00:00]} 8. f3 {[%emt 0:00:09]} Be6 {[%emt 0:00:00]} 9. Qd2 {[%emt 0:00:07]} h5 {[%emt 0:00:00]} 10. O-O-O {[%emt 0:00:13]} Nbd7 {[%emt 0:00:00]} 11. Bd3 {B90: Sicilian Najdorf: Unusual White 6th moves, 6 Be3 Ng4 and 6 Be3 e5.} Rc8 {[%emt 0:01:00]} 12. Kb1 Qc7 {[%emt 0:01:45]} 13. h3 {[%emt 0:00:25] White has an edge.} h4 {[%emt 0:00:06]} 14. f4 b5 {[%emt 0:01:17]} 15. Rhe1 {[%emt 0:01:46]} Nb6 (15... O-O $11) 16. Bxb6 $14 {[%emt 0:02:40]} Qxb6 {[%emt 0:09:14]} 17. Nd5 {[%emt 0:03:25]} Qd8 18. Qf2 {[%emt 0:14:36]} Nd7 {[%emt 0:19:47] [#]} 19. fxe5 $146 {[%emt 0:21:20] 0x0.00215a464ba5dp-1022s more active pieces.} (19. Qa7 $16) ({Predecessor:} 19. Qa7 O-O 20. Qxa6 Bxd5 21. exd5 exf4 22. Qa5 Ne5 23. Qxd8 Bxd8 24. Bxb5 Bf6 25. a4 {½-½ (52) Shomoev,A (2373)-Shariyazdanov,A (2594) Tomsk 2001}) 19... Nxe5 {[%emt 0:08:44]} 20. Nxe7 {[%emt 0:11:07]} Qxe7 {[%emt 0:00:22]} 21. Nd4 {[%emt 0:00:05]} g6 {[%emt 0:11:25]} 22. Nf3 {[%emt 0:02:44]} (22. Be2 $14) 22... Kf8 {[%emt 0:11:48]} (22... Nxf3 $1 $11 23. Qxf3 O-O) 23. Qd4 {[%emt 0:00:56]} Qc7 {[%emt 0:05:23]} 24. Qf2 {[%emt 0:01:52]} Qe7 {[%emt 0:00:27]} 25. Be2 {[%emt 0:02:02]} Qc7 {[%emt 0:06:52]} 26. Bf1 {[%emt 0:00:36]} (26. Nd4 $5 {[%cal Rd4e6]} Qe7 27. Nxe6+ Qxe6 28. Rd5 $14) 26... Nxf3 {[%emt 0:04:27]} 27. gxf3 {[%emt 0:00:02]} Qc5 {[%emt 0:01:11]} 28. Rd4 {[%emt 0:01:31]} g5 {[%emt 0:00:52]} 29. Red1 {[%emt 0:00:59]} Ke7 {[%emt 0:01:57]} 30. c3 {[%emt 0:02:22]} (30. Qd2 $5 {[%cal Rd4d6]}) 30... Rcd8 {[%emt 0:03:06]} 31. Qd2 {[%emt 0:03:44]} ({Better is} 31. f4 $11 gxf4 32. Qxf4) 31... f6 {[%emt 0:01:31]} 32. f4 {[%emt 0:02:04]} gxf4 $1 {[%emt 0:00:16]} 33. Qxf4 {[%emt 0:00:04]} Qe5 {[%emt 0:00:11]} 34. Qf2 {[%emt 0:00:03]} Qg3 {[%emt 0:01:56]} 35. Qd2 {[%emt 0:00:02][%cal Oe4e5] [#] Black must now prevent e5!} Rh5 {[%emt 0:02:19]} 36. Re1 {[%emt 0:03:42]} Rg5 {[%emt 0:04:54]} 37. Rd3 {[%emt 0:00:36]} Qe5 {[%emt 0:00:19]} 38. Qf2 {[%emt 0:00:25]} Rh8 {[%emt 0:04:28]} (38... Rg3 $11 {keeps the balance.}) 39. Qa7+ $16 {[%emt 0:02:06]} Bd7 {[%emt 0:00:06]} 40. Red1 {[%emt 0:00:32]} (40. Qxa6 $16 {Hoping for Red1.} Rc8 41. Rd4) 40... Qxe4 $14 {[%emt 0:01:28]} 41. Ka1 {[%emt 0:00:52]} Ra8 {[%emt 0:00:07]} (41... Qc6 $16) 42. Qf2 $36 {[%emt 0:01:28][%mdl 2048] White is on the roll.} ({Not} 42. Qc7 Qc6 43. Qa5 (43. Qxd6+ Qxd6 44. Rxd6 Be6 $11) 43... Qc5 $14) 42... Re5 $2 {[%emt 0:01:42]} (42... Rf5 43. Qd2 Qf4) 43. Rxd6 {[%emt 0:00:07]} Be6 {[%emt 0:00:18]} 44. Bg2 {[%emt 0:00:05]} Qc4 {[%emt 0:01:05][%csl Ge6][%cal Rc4a2]} 45. Rxe6+ $1 {[%emt 0:00:16]} Rxe6 {[%emt 0:00:33]} 46. Bxa8 {[%emt 0:00:10] Bd5 is the strong threat.} Qc7 {[%emt 0:00:15]} 47. Qxh4 {[%emt 0:20:06] White threatens Qh7+ and mate.} Qe5 {[%emt 0:01:42]} 48. Qh7+ {[%emt 0:00:00] White mates.} Ke8 {[%emt 0:00:03] [#]} 49. Bc6+ $1 {[%emt 0:00:00]} Rxc6 {[%emt 0:00:03]} 50. Qd7+ {[%emt 0:00:00]} Kf8 {[%emt 0:00:10]} 51. Qxc6 {[%emt 0:00:00]} Qe2 {[%emt 0:00:04]} 52. Qxf6+ {[%emt 0:00:00]} Kg8 {[%emt 0:00:02]} 53. Rd8+ {[%emt 0:00:00]} Kh7 {[%emt 0:00:05]} 54. Rh8# {[%emt 0:00:00] Weighted Error Value: White=0.18 (very precise) /Black=0.31} 1-0

[Event "34th MPL National U14-ch 2022"]
[Site "Ahmedabad"]
[Date "2022.05.13"]
[Round "9.8"]
[White "Anubhav Rawat"]
[Black "Vaz, Ethan"]
[Result "0-1"]
[ECO "B90"]
[WhiteElo "1329"]
[BlackElo "1792"]
[Annotator "NA RC COMBH"]
[PlyCount "146"]
[EventDate "2022.05.09"]
[EventType "swiss"]
[EventCountry "IND"]
[SourceTitle "playchess.com"]
[Source "ChessBase"]
[SourceQuality "1"]
[TimeControl "5400+30"]

1. e4 {[%emt 0:00:03]} c5 2. Nf3 {[%emt 0:00:22]} d6 {[%emt 0:01:22]} 3. d4 {[%emt 0:00:08]} cxd4 {[%emt 0:00:04]} 4. Nxd4 {[%emt 0:00:07]} Nf6 {[%emt 0:00:08]} 5. Nc3 {[%emt 0:00:29]} a6 {[%emt 0:00:08]} 6. Be3 {[%emt 0:08:28]} e5 {[%emt 0:01:34]} 7. Nb3 {[%emt 0:00:04]} Be6 8. f3 {[%emt 0:01:02]} Be7 {[%emt 0:02:12]} 9. Qd2 {[%emt 0:00:56]} Nbd7 {[%emt 0:00:48]} 10. g4 {[%emt 0:00:36]} b5 11. Nd5 {[%emt 0:12:01]} Bxd5 {[%emt 0:06:44]} 12. exd5 {[%emt 0:00:13]} Nb6 {[%emt 0:10:32]} 13. Bxb6 {[%emt 0:00:57]} Qxb6 {[%emt 0:01:46]} 14. O-O-O {[%emt 0:05:19]} O-O {[%emt 0:16:51]} 15. a3 {[%emt 0:13:22]} a5 {[%emt 0:18:08]} 16. Kb1 {[%emt 0:02:01]} Rfc8 {[%emt 0:03:15]} 17. h4 {[%emt 0:06:09]} a4 {[%emt 0:10:39]} 18. Nc1 {[%emt 0:01:59]} Rc7 {[%emt 0:07:04]} 19. Na2 {[%emt 0:01:04]} Rc5 {[%emt 0:04:36]} 20. Nb4 {[%emt 0:02:04]} Qb7 {[%emt 0:03:07]} 21. Bd3 {[%emt 0:02:48]} Bd8 {[%emt 0:03:06]} 22. Nc6 {[%emt 0:08:03]} Bb6 {[%emt 0:00:36]} 23. Be4 {[%emt 0:01:49]} Qc7 {[%emt 0:02:22]} 24. h5 {[%emt 0:05:18]} Rc4 {[%emt 0:02:10]} 25. Rde1 {[%emt 0:04:09]} Nxe4 {[%emt 0:01:07]} 26. fxe4 {[%emt 0:05:01]} Qd7 {[%emt 0:01:01]} 27. g5 {[%emt 0:02:24]} Qg4 {[%emt 0:00:28]} 28. g6 {[%emt 0:03:06]} Rxe4 {[%emt 0:00:35]} 29. gxf7+ {[%emt 0:01:43]} Kxf7 {[%emt 0:01:45]} 30. Rxe4 {[%emt 0:00:10]} Qxe4 {[%emt 0:00:01]} 31. Rf1+ {[%emt 0:00:30]} Kg8 {[%emt 0:00:07]} 32. Ne7+ {[%emt 0:00:53]} Kh8 {[%emt 0:00:00]} 33. h6 {[%emt 0:02:07]} Qg4 {[%emt 0:00:21]} 34. Nf5 {[%emt 0:05:21]} gxh6 {[%emt 0:00:46]} 35. Nxd6 {[%emt 0:01:03]} Qh5 {[%emt 0:04:37]} 36. Nf7+ {[%emt 0:01:38]} Kg7 {[%emt 0:00:00]} 37. Qg2+ {[%emt 0:01:29]} Qg6 {[%emt 0:00:00]} 38. Qh2 {[%emt 0:01:27]} Re8 {[%emt 0:00:00]} 39. Nxe5 {[%emt 0:00:11]} Qg5 {[%emt 0:00:35]} 40. Nd7 {[%emt 0:02:09]} Bd4 {[%emt 0:01:07]} 41. c3 {[%emt 0:00:13]} Qxd5 {[%emt 0:00:45]} 42. Qc7 {[%emt 0:01:09]} Re7 {[%emt 0:00:15]} 43. Qf4 {[%emt 0:01:06]} Qe4+ {[%emt 0:00:46]} 44. Qxe4 {[%emt 0:00:12]} Rxe4 {[%emt 0:00:05]} 45. cxd4 {[%emt 0:00:21]} Rxd4 {[%emt 0:00:04]} 46. Nc5 {[%emt 0:00:48]} Rg4 {[%emt 0:01:05]} 47. Ne6+ {[%emt 0:00:33]} Kg6 {[%emt 0:00:12]} 48. Nf8+ {[%emt 0:00:23]} Kg7 {[%emt 0:00:04]} 49. Ne6+ {[%emt 0:00:06]} Kg6 {[%emt 0:00:02]} 50. Nc7 {[%emt 0:00:10]} Rg5 {[%emt 0:00:36]} 51. Rf4 {[%emt 0:01:18]} Rc5 {[%emt 0:00:53]} 52. Ne6 {[%emt 0:00:31]} Re5 {[%emt 0:00:08]} 53. Nd4 {[%emt 0:00:19]} h5 {[%emt 0:00:36]} 54. Nf3 {[%emt 0:00:45]} Re6 {[%emt 0:01:29]} 55. Kc2 {[%emt 0:00:26]} Re3 {[%emt 0:00:41]} 56. Kd2 {[%emt 0:00:39]} Rb3 {[%emt 0:00:06]} 57. Kc2 {[%emt 0:00:40]} Re3 {[%emt 0:00:07]} 58. Nd4 {[%emt 0:00:20]} Kg5 {[%emt 0:00:46]} 59. Rf2 {[%emt 0:00:41]} h4 {[%emt 0:00:30]} 60. Kd2 {[%emt 0:00:21]} Re7 {[%emt 0:00:32]} 61. Kd1 {[%emt 0:00:39]} h3 {[%emt 0:00:48]} 62. Nxb5 {[%emt 0:00:14]} Kg4 {[%emt 0:00:18]} 63. Nd4 {[%emt 0:00:39]} Rd7 {[%emt 0:00:53]} 64. Rd2 {[%emt 0:00:20]} h5 {[%emt 0:00:21]} 65. Ke1 {[%emt 0:00:24]} h2 {[%emt 0:00:17]} 66. Rxh2 {[%emt 0:00:36]} Rxd4 {[%emt 0:00:01]} 67. Rf2 {[%emt 0:00:50]} Re4+ {[%emt 0:00:42]} 68. Kd2 {[%emt 0:00:12]} Kg3 {[%emt 0:00:15]} 69. Rf8 {[%emt 0:00:14]} h4 {[%emt 0:00:05]} 70. Kd3 {[%emt 0:00:45]} Rf4 {[%emt 0:00:32]} 71. Rg8+ {[%emt 0:00:31]} Rg4 {[%emt 0:00:04]} 72. Rh8 {[%emt 0:00:36]} h3 {[%emt 0:00:05]} 73. Ke3 {[%emt 0:00:44]} h2 {[%emt 0:00:14]} 0-1

[Event "34th MPL National U14-ch 2022"]
[Site "Ahmedabad"]
[Date "2022.05.13"]
[Round "9.9"]
[White "Ilamparthi A R"]
[Black "Yuwan Das"]
[Result "1-0"]
[ECO "A09"]
[WhiteElo "2121"]
[BlackElo "1493"]
[Annotator "TA"]
[PlyCount "109"]
[EventDate "2022.05.09"]
[EventType "swiss"]
[EventCountry "IND"]
[SourceTitle "playchess.com"]
[Source "ChessBase"]
[SourceQuality "1"]
[TimeControl "5400+30"]

{[%evp 13,109,28,58,53,56,54,126,113,112,116,129,103,101,105,147,135,210,185,205,170,228,223,368,377,410,410,508,460,535,529,500,263,239,264,245,258,289,295,374,322,330,262,305,293,358,316,335,326,393,402,439,433,423,429,422,269,654,420,375,353,409,397,388,387,409,395,399,385,472,470,524,508,464,424,395,406,606,582,724,724,743,730,665,602,2145,1459,1735,1472,29975,29977,29977,29978,29979,29980,29980,29981,29978,29979]} 1. Nf3 {[%emt 0:00:05]} d5 {[%emt 0:00:11]} 2. g3 {[%emt 0:00:23]} Nc6 3. Bg2 {[%emt 0:01:27]} e5 4. d3 {[%emt 0:02:20]} Nf6 5. c4 {[%emt 0:00:28]} d4 {[%emt 0:10:47]} 6. O-O {[%emt 0:00:22]} Be7 7. b4 Bxb4 {[%emt 0:21:05] [#]} 8. Nxe5 $1 {A09: Réti Opening: 1 Nf3 d5 2 c4.} Nxe5 {[%emt 0:09:21]} 9. Qa4+ {[%emt 0:04:48]} Nfd7 {[%emt 0:08:06] has lost popularity (9...Nc6).} ({Black should try} 9... Bd7 $14 10. Qxb4 b6) 10. Qxb4 $16 {[%emt 0:00:17] White is better.} c5 {[%emt 0:01:18] [#]} 11. Qa3 {[%emt 0:06:58]} Qe7 {[%emt 0:10:06]} 12. Nd2 {[%emt 0:16:19][%cal Bb1d2,Bd2e4,Be4d6][%mdl 32]} O-O {[%emt 0:03:42] [#]} 13. Rb1 $146 {[%emt 0:02:44]} ({Predecessor:} 13. Ne4 h6 14. Nd2 Nc6 15. Re1 Nde5 16. Qb3 Bf5 17. Ba3 Rac8 18. Ne4 b6 19. Nd2 Na5 20. Qc2 {½-½ (20) Brankovic,D (2349)-Ratkovic,M (2214) Paracin 2012}) 13... Nc6 {[%emt 0:32:24] [#]} 14. Ne4 $1 {[%emt 0:02:20]} f6 {[%emt 0:00:00]} (14... b6 $16 {was called for.}) 15. Bf4 $18 {[%emt 0:02:41]} Nce5 {[%emt 0:00:00]} 16. h4 {[%emt 0:00:18]} a6 {[%emt 0:00:00]} (16... h6 {might work better.} 17. e3 g5) 17. e3 {[%emt 0:01:46]} Re8 {[%emt 0:00:00]} (17... dxe3 $142 18. Bxe3 Rd8) 18. exd4 {[%emt 0:10:49]} cxd4 {[%emt 0:00:00]} 19. Nd6 {[%emt 0:00:19]} Ra7 {[%emt 0:00:42]} 20. Rb3 {[%emt 0:02:53]} Rd8 {[%emt 0:01:19]} 21. Bd5+ {[%emt 0:00:12]} Kf8 {[%emt 0:00:16]} 22. Nb5 {[%emt 0:01:37]} Qxa3 {[%emt 0:00:41]} 23. Rxa3 {[%emt 0:00:03][%cal Bb3a3,Ba3a7,Ba7a5,Ba5b5][%mdl 32]} ({Not} 23. Nxa3 Nc5 $11) 23... axb5 {[%emt 0:01:12]} 24. Rxa7 {[%emt 0:00:02]} bxc4 {[%emt 0:00:44]} 25. dxc4 {[%emt 0:00:58]} Nc5 {[%emt 0:00:33]} 26. Ra5 {[%emt 0:02:25]} b6 {[%emt 0:00:28]} 27. Rb5 {[%emt 0:00:07]} Rd6 {[%emt 0:00:28]} 28. Rfb1 {[%emt 0:00:39]} Ncd7 {[%emt 0:00:31]} 29. Rd1 {[%emt 0:01:18]} Ba6 {[%emt 0:00:25]} 30. Rb4 {[%emt 0:01:02]} ({Weaker is} 30. Rxd4 Bxb5 31. cxb5 Nc5 $16) 30... h6 {[%emt 0:00:28]} 31. Rxd4 {[%emt 0:01:14]} g5 {[%emt 0:00:23]} 32. hxg5 {[%emt 0:00:39]} hxg5 {[%emt 0:00:04]} 33. Be3 {[%emt 0:01:09]} Ke7 {[%emt 0:01:04]} 34. Rd2 {[%emt 0:00:41]} Ng4 $2 {[%emt 0:00:40]} (34... Bxc4 35. Rxc4 (35. Bxc4 Nf3+ 36. Kg2 Nxd2 $18) 35... Rxd5) 35. Bd4 {[%emt 0:00:37]} Nge5 {[%emt 0:01:02][%cal Od6d5]} 36. Kg2 {[%emt 0:04:05]} Kd8 {[%emt 0:00:00]} 37. Ra4 {[%emt 0:00:30]} Bc8 {[%emt 0:00:19]} 38. Be3 {[%emt 0:00:50]} Ng4 {[%emt 0:00:40]} 39. Rb2 {[%emt 0:02:12]} Nxe3+ {[%emt 0:00:27]} 40. fxe3 {[%emt 0:00:01]} Nc5 {[%emt 0:00:28]} 41. Ra7 {[%emt 0:00:09]} f5 {[%emt 0:00:28]} 42. Rb1 {[%emt 0:00:11]} Rh6 {[%emt 0:00:35]} 43. Rh1 {[%emt 0:00:44]} Rxh1 {[%emt 0:00:28]} 44. Kxh1 {[%emt 0:00:02][%mdl 4096] Endgame KRB-KBN} g4 {[%emt 0:00:32]} (44... Bd7 $142 45. g4 fxg4) 45. Kg2 {[%emt 0:00:05]} Nd3 {[%emt 0:00:31]} 46. Kf1 {[%emt 0:00:09]} Nc5 {[%emt 0:00:30]} 47. Ke2 {[%emt 0:00:06]} Bd7 {[%emt 0:00:26]} 48. Kd2 {[%emt 0:00:21]} Ke7 {[%emt 0:00:11]} 49. Bc6 {[%emt 0:00:13][%cal Oa7d7] Strongly threatening Rxd7+!} Kd6 {[%emt 0:00:12]} 50. Bxd7 {[%emt 0:00:05]} Nxd7 {[%emt 0:00:03] [#]} 51. Rxd7+ $1 {[%emt 0:01:03] White mates.} Kxd7 {[%emt 0:00:12]} 52. Kd3 {[%emt 0:00:03]} Kc6 {[%emt 0:00:44]} 53. Kd4 {[%emt 0:00:09]} Kd6 {[%emt 0:00:08]} 54. a4 {[%emt 0:00:16]} Ke6 {[%emt 0:00:32]} 55. c5 {[%emt 0:00:04] Black got outplayed after the opening.  Weighted Error Value: White=0.27 (precise) /Black=0.51} 1-0

[Event "34th MPL National U14-ch 2022"]
[Site "Ahmedabad"]
[Date "2022.05.13"]
[Round "9.10"]
[White "Sahib Singh"]
[Black "Arshpreet Singh"]
[Result "1-0"]
[ECO "B23"]
[WhiteElo "1991"]
[BlackElo "1564"]
[Annotator "TA"]
[PlyCount "89"]
[EventDate "2022.05.09"]
[EventType "swiss"]
[EventCountry "IND"]
[SourceTitle "playchess.com"]
[Source "ChessBase"]
[SourceQuality "1"]
[TimeControl "5400+30"]

{[%evp 11,89,0,0,4,0,0,0,0,65,0,84,38,66,72,99,37,113,117,147,153,167,153,185,185,185,183,183,183,183,183,187,189,194,198,198,198,195,194,194,194,190,191,225,203,201,189,207,203,293,188,174,158,153,122,267,258,454,414,372,296,1652,1537,1665,1586,2009,1858,29978,29979,29979,29980,29980,29981,29980,29981,29981,29982,29985,29985,29990,29991]} 1. e4 {[%emt 0:00:02]} c5 {[%emt 0:00:01]} 2. Nc3 {[%emt 0:00:07]} Nc6 {[%emt 0:00:09]} 3. f4 {[%emt 0:00:03]} e6 {[%emt 0:00:12]} 4. Nf3 {[%emt 0:00:04]} d5 {[%emt 0:00:04]} 5. Bb5 {[%emt 0:01:05]} Nge7 {[%emt 0:00:09]} 6. exd5 {[%emt 0:15:48]} Nxd5 {[%emt 0:00:08]} 7. Bxc6+ {[%emt 0:05:45] B23: Closed Sicilian: Lines without g3.} bxc6 {[%emt 0:00:08]} 8. d3 {[%emt 0:01:57]} Nxc3 {[%emt 0:00:42]} 9. bxc3 {[%emt 0:00:06] The position is equal.} Be7 {[%emt 0:00:14]} (9... c4 $11) 10. O-O {[%emt 0:05:34] [#]} ({Better is} 10. c4 $14) 10... Bf6 $146 {[%emt 0:03:01]} (10... c4 $1 $11) ({Predecessor:} 10... c4 11. Qe2 O-O 12. Ne5 cxd3 13. cxd3 Qc7 14. Kh1 c5 15. Be3 Bb7 16. Rab1 Rfd8 {½-½ (29) Eymann,H-Schott,R (2086) Cap d'Agde 2002}) 11. Qe1 {[%emt 0:02:43]} (11. Ne5 $16) 11... O-O {[%emt 0:04:39][%cal Oc5c4]} 12. Ne5 {[%emt 0:00:36]} Bxe5 {[%emt 0:03:29]} 13. Qxe5 {[%emt 0:00:12]} (13. fxe5 $16 Rb8 14. Be3) 13... Qd5 {[%emt 0:01:41]} (13... c4 $1 $14) 14. c4 $16 {[%emt 0:00:12] White is more active.} Qxe5 15. fxe5 {[%emt 0:00:05]} Rb8 16. Ba3 $36 {[%emt 0:00:09][%mdl 2048] White is in control.} Rd8 {[%emt 0:21:43]} 17. Rab1 {[%emt 0:00:08]} Rb7 {[%emt 0:01:07]} 18. Rxb7 {[%emt 0:00:48]} Bxb7 {[%emt 0:00:07]} 19. Bxc5 $18 {[%emt 0:00:21][%mdl 4096] Endgame KRB-KRB} a6 {[%emt 0:00:10]} 20. Kf2 {[%emt 0:00:54]} Rd7 {[%emt 0:01:48]} 21. Ke3 {[%emt 0:00:05]} Bc8 {[%emt 0:00:22]} 22. Rb1 {[%emt 0:00:12]} Rb7 {[%emt 0:00:17]} 23. Rxb7 {[%emt 0:00:57]} Bxb7 {[%emt 0:00:04] KB-KB} 24. Be7 {[%emt 0:00:04] Prevents f6.} c5 {[%emt 0:01:27]} 25. g4 {[%emt 0:12:04]} ({Much less strong is} 25. Bxc5 Bxg2 26. Be7 Bc6) 25... h6 {[%emt 0:03:51]} 26. Bxc5 {[%emt 0:02:05]} f6 {[%emt 0:01:00]} 27. exf6 {[%emt 0:01:51]} gxf6 {[%emt 0:00:10]} 28. Bb4 {[%emt 0:04:48]} e5 {[%emt 0:00:29]} 29. c3 {[%emt 0:00:37]} Bc8 {[%emt 0:00:26]} (29... Bg2 {keeps fighting.} 30. Kf2 Bc6) 30. Kf3 {[%emt 0:01:31]} Be6 {[%emt 0:00:12]} 31. a4 {[%emt 0:01:38][%cal Ba2a4,Ba4a5][%mdl 32]} Kf7 {[%emt 0:00:18]} 32. a5 {[%emt 0:00:29]} Ke8 {[%emt 0:06:14] A mistake that costs the game.} (32... f5 $16 33. gxf5 Bxf5) 33. Ba3 {[%emt 0:00:57] [#] And now Bc1 would win.} Kf7 $2 {[%emt 0:01:23]} (33... Bd7 {was necessary.} 34. d4 Ba4) 34. Bc1 {[%emt 0:03:06]} Kg6 {[%emt 0:00:34]} 35. Ke4 {[%emt 0:01:13]} h5 $2 {[%emt 0:01:43]} (35... Bxg4 36. d4 Kf7 37. Bxh6 Ke7) 36. gxh5+ {[%emt 0:00:17]} Kxh5 {[%emt 0:00:05]} 37. c5 {[%emt 0:00:05][%cal Bc4c5,Bc5c6][%mdl 32]} Kg6 {[%emt 0:02:25]} 38. d4 {[%emt 0:00:22]} exd4 {[%emt 0:01:30]} 39. cxd4 {[%emt 0:00:05][%cal Bc3d4,Bd4d5,Bd5d6,Bd6d7][%mdl 32] White mates.} Kf7 {[%emt 0:00:12]} 40. d5 {[%emt 0:00:05]} Bh3 {[%emt 0:00:12]} 41. c6 {[%emt 0:00:19]} Ke8 {[%emt 0:00:36]} 42. Kd4 {[%emt 0:00:11]} Kd8 {[%emt 0:01:04]} 43. Kc5 {[%emt 0:00:38]} Bg2 {[%emt 0:00:10]} 44. d6 {[%emt 0:00:07]} Kc8 {[%emt 0:00:14]} 45. d7+ {[%emt 0:00:11] Weighted Error Value: White=0.09 (flawless) /Black=0.48} 1-0